Workbook

Sheet Accueil
D16: Compte chèques | F16: ='Compte courant'!F2 -> 0
D17: LDD | F17: =LDD!F2 -> 0
D18: PEL | F18: =PEL!F2 -> 0
D19: Livret A | F19: ='Livret A'!F2 -> 0
D20: Assurance Vie | F20: ='Assurance Vie'!F2 -> 0
D21: PERP | F21: =PERP!F2 -> 0
D22: Compte commun | F22: ='Compte joint'!F2 -> 0
D23: Livret A (2) | F23: ='Livret A (2)'!F2 -> 0
F24: =SUM(F16:F21) -> 0

Sheet Prélèvemment permanent
A1: Prélèvements permanents
A3: Date | B3: Montant | D3: Rubrique | E3: Type | F3: Detail
A4: 2018-02-01 | B4: 0 | D4: BANQUE | E4: Virement | F4: Livret A
A5: 2018-02-02 | B5: 0 | D5: ENTRETIEN AUTRES | E5: Virement | F5: Entretien PAC et Poêle à Bois
A6: 2018-02-02 | B6: 0 | D6: BANQUE | E6: Virement | F6: PEL
A7: 2018-02-02 | B7: 0 | D7: ENERGIE | E7: Prélèvement | F7: EAU
A8: 2018-02-03 | B8: 0 | D8: TELEPHONE | E8: Prelèvement | F8: RED SFR
A9: 2018-11-05 | B9: 0 | D9: ENERGIE | E9: Prélèvement | F9: DIRECT ENERGIE
A10: 2018-11-05 | B10: 0 | D10: ENERGIE | E10: Prélèvement | F10: DIRECT ENERGIE
A11: 2018-11-05 | B11: 0 | D11: ENERGIE | E11: Prélèvement | F11: DIRECT ENERGIE
A12: 2018-02-08 | B12: 0 | D12: FRAIS BANCAIRE | E12: Prélèvement | F12: Cotisation affinea
A13: 2018-06-08 | B13: 0 | D13: SANTE | E13: Prélèvement | F13: Mutuelle
A14: 2018-06-08 | B14: 0 | D14: SANTE | E14: Prélèvement | F14: Mutuelle
A15: 2018-02-10 | B15: 0 | D15: ASSURANCE | E15: Prélèvement | F15: Assurance
A16: 2018-02-11 | B16: 0 | D16: ENTRETIEN AUTRES | E16: Virement | F16: Entretien robot tondeuse
A17: 2018-02-16 | B17: 0 | D17: IMPOT | E17: Prélèvement | F17: Impôts sur le Revenu
A18: 2018-02-16 | B18: 0 | D18: IMPOT | E18: Prélèvement | F18: Impôts Taxe d'habitation
A19: 2018-02-16 | B19: 0 | D19: IMPOT | E19: Prélèvement | F19: Impôts Taxe Foncière
A20: 2018-02-16 | B20: 0 | D20: IMPOT | E20: Prélèvement | F20: Impôts Taxe d’habitation
A21: 2018-02-18 | B21: 0 | D21: TELEPHONE | E21: Prélèvement | F21: FREE
A22: 2018-03-20 | B22: 0 | D22: TELEPHONE | E22: Prélèvement | F22: FREE
A23: 2018-02-21 | B23: 0 | D23: INTERNET | E23: Prélèvement | F23: ORANGE
A24: 2018-02-26 | B24: 0 | D24: BANQUE | E24: Virement | F24: Prêt maison
A26: =SUM(B4:B24) -> 0

Sheet Compte courant
A1: BANQUE POPULAIRE | E1: =TODAY() -> 2019-01-26
A2: COMPTE CHEQUES | E2: SOLDE | F2: =SUM('Compte courant'!C3:C9932)-SUM('Compte courant'!B3:B9932) -> 0
A3: Date opération | B3: Débit | C3: Crédit | D3: Rubrique | E3: Type | F3: Détails
G4: 1000
A5: 2019-01-26 | C5: 0

Sheet Compte joint
A1: BANQUE POPULAIRE | E1: =TODAY() -> 2019-01-26
A2: COMPTE JOINT | E2: SOLDE | F2: =SUM(C3:C10002)-SUM(B3:B10002) -> 0
A3: Date opération | B3: Débit | C3: Crédit | D3: Rubrique | E3: Type | F3: Détails
A5: 2019-01-26 | C5: 0
G265: 576.9
G266: 557.13
G267: =G265+G266 -> 1134.03
H371: Reste 176,09 (subventions)

Sheet LDD
A1: BANQUE POPULAIRE | E1: =TODAY() -> 2019-01-26
A2: LDD | E2: SOLDE | F2: =SUM(C3:C10004)-SUM(B3:B10004) -> 0
A3: Date opération | B3: Débit | C3: Crédit | D3: Rubrique | E3: Type | F3: Détails
A5: 2019-01-26 | C5: 0

Sheet PEL
A1: BANQUE POPULAIRE | F1: =TODAY() -> 2019-01-26
A2: PEL | E2: SOLDE | F2: =SUM(C3:C10004)-SUM(B3:B10004) -> 0
A3: Date opération | B3: Débit | C3: Crédit | D3: Rubrique | E3: Type | F3: Détails
A5: 2019-01-26 | C5: 0

Sheet Livret A
A1: BANQUE POPULAIRE | F1: =TODAY() -> 2019-01-26
A2: Livret A | E2: SOLDE | F2: =SUM(C3:C10003)-SUM(B3:B10003) -> 0
A3: Date opération | B3: Débit | C3: Crédit | D3: Rubrique | E3: Type | F3: Détails
A5: 2019-01-26 | C5: 0

Sheet Livret A (2)
A1: BANQUE POPULAIRE | F1: =TODAY() -> 2019-01-26
A2: LIVRET A (2) | E2: SOLDE | F2: =SUM(C3:C10003)-SUM(B3:B10003) -> 0
A3: Date opération | B3: Débit | C3: Crédit | D3: Rubrique | E3: Type | F3: Détails
A5: 2019-01-26 | C5: 0

Sheet Assurance Vie
A1: BANQUE POPULAIRE | F1: =TODAY() -> 2019-01-26
A2: ASSURANCE VIE | E2: SOLDE | F2: =SUM(C3:C10003)-SUM(B3:B10003) -> 0
A3: Date opération | B3: Débit | C3: Crédit | D3: Rubrique | E3: Type | F3: Détails
A5: 2019-01-26 | C5: 0

Sheet PERP
A1: BANQUE POPULAIRE | F1: =TODAY() -> 2019-01-26
A2: PERP | E2: SOLDE | F2: =SUM(C3:C9999)-SUM(B3:B9999) -> 0
A3: Date opération | B3: Débit | C3: Crédit | D3: Rubrique | E3: Type | F3: Détails
A5: 2019-01-26 | C5: 0

Sheet Santé
A1: SANTE | E1: =TODAY() -> 2019-01-26 | G1: SANTE | K1: =TODAY() -> 2019-01-26
A2: 1 | D2: SOLDE | E2: =SUM(C6+D6)-SUM(B3:B10003) -> 0 | G2: 2 | J2: SOLDE | K2: =SUM(I6+J6)-SUM(H3:H10003) -> 0
A3: Date opération | B3: Débit | C3: CNMSS | D3: UNEO | E3: Détails | G3: Date opération | H3: Débit | I3: CNMSS | J3: UNEO | K3: Détails
C4: Crédit | D4: Crédit | I4: Crédit | J4: Crédit
A6: 2019-01-26 | B6: 0 | G6: 2019-01-26 | H6: 0

Sheet Ecole
A1: Frais de scolarité Lucie | D1: =TODAY() -> 2019-01-26
D2: =SUM(C3:C9999)-SUM(B3:B9999) -> 0
A3: Date | B3: Débit | C3: Crédit | D3: Détail
A5: 2019-01-26 | B5: 0

Sheet Travaux maison
A1: Travaux Maison | F1: =TODAY() -> 2019-01-26
A2: Date d'achat | B2: 00:00:00 | E2: SOLDE | F2: =SUM(C3:C9999)-SUM(B3:B9999) -> 0
A3: Date opération | B3: Débit | C3: Crédit | D3: Rubrique | E3: Type | F3: Détails
A4: 2019-01-26

Sheet Entretiens Véhicules
A1: Véhicule 1 | G1: Véhicule 2
A2: Date d'achat : | G2: Date d'achat :
A3: 1ère mise en circulation : | G3: 1ère mise en circulation :
A4: Couleur : Vert | G4: Couleur : Gris/bleu
A5: Puissance fiscale : | G5: Puissance fiscale :
A6: Puissance Cv : | G6: Puissance Cv :
A7: Date | B7: Détails | C7: Lieu | D7: Km | E7: Prix | G7: Date | H7: Détails | I7: Lieu | J7: Km | K7: Prix
A8: 2019-01-26 | B8: Carte Grise | C8: PAU | E8: 0 | G8: 2019-01-26 | H8: Carte grise | I8: PAU | K8: 0
E29: =SUM(E8:E28) -> 0 | K29: =SUM(K8:K28) -> 0

Sheet Moto
A1: Moto
A2: Date d'achat :
A3: 1ère mise en circulation :
A4: Couleur : Vert
A5: Puissance fiscale :
A6: Puissance Cv :
A7: Date | B7: Détails | C7: Lieu | D7: Km | E7: Prix
A8: 2019-01-26 | B8: Carte Grise | C8: PAU | E8: 0
E29: =SUM(E8:E28) -> 0

Sheet Entretiens autres
A1: Entretien Piscine | B1: Date | C1: € | D1: Détails | F1: Entretien chaudiere fuel | G1: Date | H1: € | I1: Détails | K1: Entretien Robot Tondeuse | L1: Date | M1: € | N1: Détails
B2: 2015 | G2: 2015 | L2: 2018
B3: 2015-11-17 | C3: 14.73 | D3: Produits entretien | G3: 2015-11-02 | H3: 637 | I3: Apport fuel | L3: 2018-12-25 | M3: 127.85 | N3: Entretien annuel
B4: 2016 | G4: 2015-11-04 | H4: 100.01 | I4: Entretien | L4: 2019
B5: 2016-03-02 | C5: 30 | D5: Produits entretien | G5: 2016
C6: 166.5 | D6: Produits entretien dont Sel | G6: 2017
B7: 2017 | G7: 2017-10-13 | H7: 57.2 | I7: Entretien
B8: 2017-04-04 | C8: 28 | D8: Produits entretien | G8: 2018
B9: 2017-05-06 | C9: 122.6 | D9: Produits entretien don Sel | G9: 2019
A10: =SUM(C3+C5+C6+C8+C9+C11) -> 461.83 | B10: 2018 | F10: =SUM(H3+H4+H7+H10+H13) -> 1020.59 | G10: 2019-01-04 | H10: 226.38 | I10: Réparation (pose aquastap) | K10: =SUM(M3+M5+M6+M8+M9+M11) -> 127.85
B11: 2018-09-05 | C11: 100 | D11: Produits entretien | G11: 2020
B12: 2019 | G12: 2021
B13: 2020
B14: 2021
A17: Entretien Poêle à bois | B17: Date | C17: € | D17: Détails | F17: Entretien pompe à chaleur | G17: Date | H17: € | I17: Détails
B18: 2015 | G18: 2015
B19: 2016 | G19: 2015-11-04 | H19: 146.3 | I19: Entretien
B20: 2016-10-04 | C20: 94.73 | D20: Ramonage | G20: 2016
B21: 2017 | G21: 2016-10-31 | H21: 146.3 | I21: Entretien
B22: 2017-09-23 | C22: 660 | D22: Bois (20 stères) | G22: 2017
B23: 2018 | G23: 2017-10-13 | H23: 148.5 | I23: Entretien
B24: 2018-10-21 | C24: 75 | D24: Ramonage | G24: 2018
B25: 2019 | G25: 2018-10-04 | H25: 151.8 | I25: Entretien
A26: =SUM(C20+C22+C24+C26+C28+C30) -> 829.73 | F26: =SUM(H19+H21+H23+H25+H27) -> 592.9 | G26: 2019
B27: 2020
B29: 2021

Sheet EDF Sevignacq
A1: EDF MAISON
A3: 2015 | B3: € | C3: KWH | D3: T° | F3: 2016 | G3: € | H3: KWH | I3: T° | K3: 2017 | L3: € | M3: KWH | N3: T° | P3: 2018 | Q3: € | R3: KWH | S3: T° | U3: 2019 | V3: € | W3: KWH | X3: T°
A4: Janvier | B4: - | C4: - | F4: Janvier | G4: 270 | H4: 1794 | I4: 8 | K4: Janvier | L4: 351 | M4: 2321 | N4: 3 | P4: Janvier | Q4: 237 | R4: 1561 | S4: 8 | U4: Janvier
A5: Février | B5: - | C5: - | F5: Février | G5: 240 | H5: 1578 | I5: 8 | K5: Février | L5: 310 | M5: 2041 | N5: 8 | P5: Février | Q5: 223 | R5: 1461 | S5: 5 | U5: Février
A6: Mars | B6: - | C6: - | F6: Mars | G6: 335 | H6: 2230 | I6: 9 | K6: Mars | L6: 215 | M6: 1389 | N6: 11 | P6: Mars | Q6: 234 | R6: 1533 | S6: 9 | U6: Mars
A7: Avril | B7: - | C7: - | F7: Avril | G7: 225 | H7: 1452 | I7: 12 | K7: Avril | L7: 159 | M7: 990 | N7: 13 | P7: Avril | Q7: 142 | R7: 897 | S7: 14 | U7: Avril
A8: Mai | B8: - | C8: - | F8: Mai | G8: 139 | H8: 845 | I8: 15 | K8: Mai | L8: 121 | M8: 723 | N8: 18 | P8: Mai | Q8: 119 | R8: 734 | S8: 15 | U8: Mai
A9: Juin | B9: - | C9: - | F9: Juin | G9: 137 | H9: 834 | I9: 18 | K9: Juin | L9: 122 | M9: 713 | N9: 22 | P9: Juin | Q9: 112 | R9: 674 | S9: 20 | U9: Juin
A10: Juillet | B10: - | C10: - | F10: Juillet | G10: 134 | H10: 804 | I10: 21 | K10: Juillet | L10: 117 | M10: 687 | N10: 21 | P10: Juillet | Q10: 114 | R10: 681 | S10: 22 | U10: Juillet
A11: Août | B11: - | C11: - | F11: Août | G11: 130 | H11: 780 | I11: 21 | K11: Août | L11: 113 | M11: 667 | N11: 21 | P11: Août | Q11: 116 | R11: 699 | S11: 22 | U11: Août
A12: Septembre | B12: 82 | C12: 453 | D12: 16 | F12: Septembre | G12: 109 | H12: 655 | I12: 16 | K12: Septembre | L12: 90 | M12: 513 | N12: 16 | P12: Septembre | U12: Septembre
A13: Octobre | B13: 111 | C13: 673 | D13: 14 | F13: Octobre | G13: 97 | H13: 571 | I13: 13 | K13: Octobre | L13: 123 | M13: 746 | N13: 16 | P13: Octobre | U13: Octobre
A14: Novembre | B14: 192 | C14: 1267 | D14: 12 | F14: Novembre | G14: 343 | H14: 2298 | I14: 9 | K14: Novembre | L14: 218 | M14: 1405 | N14: 8 | P14: Novembre | U14: Novembre
A15: Décembre | B15: 252 | C15: 1713 | D15: 10 | F15: Décembre | G15: 335 | H15: 2216 | I15: 7 | K15: Décembre | L15: 288 | M15: 1899 | N15: 7 | P15: Décembre | U15: Décembre
A16: Total | B16: =SUM(B12:B15) -> 637 | C16: =SUM(C12:C15) -> 4106 | F16: Total | G16: =SUM(G4:G15) -> 2494 | H16: =SUM(H4:H15) -> 16057 | K16: Total | L16: =SUM(L4:L15) -> 2227 | M16: =SUM(M4:M15) -> 14094 | P16: Total | Q16: =SUM(Q4:Q15) -> 1297 | R16: =SUM(R4:R15) -> 8240 | U16: Total | V16: =SUM(V4:V15) -> 0 | W16: =SUM(W4:W15) -> 0
A18: 2020 | B18: € | C18: KWH | D18: T° | F18: 2021 | G18: € | H18: KWH | I18: T° | K18: 2022 | L18: € | M18: KWH | N18: T° | P18: 2023 | Q18: € | R18: KWH | S18: T° | U18: 2024 | V18: € | W18: KWH | X18: T°
A19: Janvier | F19: Janvier | K19: Janvier | P19: Janvier | U19: Janvier
A20: Février | F20: Février | K20: Février | P20: Février | U20: Février
A21: Mars | F21: Mars | K21: Mars | P21: Mars | U21: Mars
A22: Avril | F22: Avril | K22: Avril | P22: Avril | U22: Avril
A23: Mai | F23: Mai | K23: Mai | P23: Mai | U23: Mai
A24: Juin | F24: Juin | K24: Juin | P24: Juin | U24: Juin
A25: Juillet | F25: Juillet | K25: Juillet | P25: Juillet | U25: Juillet
A26: Août | F26: Août | K26: Août | P26: Août | U26: Août
A27: Septembre | F27: Septembre | K27: Septembre | P27: Septembre | U27: Septembre
A28: Octobre | F28: Octobre | K28: Octobre | P28: Octobre | U28: Octobre
A29: Novembre | F29: Novembre | K29: Novembre | P29: Novembre | U29: Novembre
A30: Décembre | F30: Décembre | K30: Décembre | P30: Décembre | U30: Décembre
A31: Total | B31: =SUM(B19:B30) -> 0 | C31: =SUM(C19:C30) -> 0 | F31: Total | G31: =SUM(G19:G30) -> 0 | H31: =SUM(H19:H30) -> 0 | K31: Total | L31: =SUM(L19:L30) -> 0 | M31: =SUM(M19:M30) -> 0 | P31: Total | Q31: =SUM(Q19:Q30) -> 0 | R31: =SUM(R19:R30) -> 0 | U31: Total | V31: =SUM(V19:V30) -> 0 | W31: =SUM(W19:W30) -> 0
A33: APPARTEMENT
A35: 2013 | B35: € | C35: KWH | F35: 2014 | G35: € | H35: KWH | K35: 2015 | L35: € | M35: KWH | P35: 2016 | Q35: € | R35: KWH | U35: 2017 | V35: € | W35: KWH
A36: Janvier | B36: - | C36: - | F36: Janvier | G36: 37 | H36: 222 | K36: Janvier | L36: 39 | M36: 223 | P36: Janvier | Q36: 16 | R36: 62 | U36: Janvier | V36: 16 | W36: 54
A37: Février | B37: - | C37: - | F37: Février | G37: 36 | H37: 210 | K37: Février | L37: 38 | M37: 212 | P37: Février | Q37: 16 | R37: 58 | U37: Février | V37: 15 | W37: 51
A38: Mars | B38: - | C38: - | F38: Mars | G38: 34 | H38: 200 | K38: Mars | L38: 36 | M38: 201 | P38: Mars | Q38: 15 | R38: 56 | U38: Mars | V38: 15 | W38: 48
A39: Avril | B39: - | C39: - | F39: Avril | G39: 32 | H39: 183 | K39: Avril | L39: 34 | M39: 185 | P39: Avril | Q39: 15 | R39: 51 | U39: Avril | V39: 14 | W39: 44
A40: Mai | B40: - | C40: - | F40: Mai | G40: 31 | H40: 172 | K40: Mai | L40: 32 | M40: 174 | P40: Mai | Q40: 14 | R40: 48 | U40: Mai | V40: 14 | W40: 42
A41: Juin | B41: - | C41: - | F41: Juin | G41: 31 | H41: 172 | K41: Juin | L41: 25 | M41: 127 | P41: Juin | Q41: 14 | R41: 49 | U41: Juin | V41: 15 | W41: 48
A42: Juillet | B42: 16 | C42: 97 | F42: Juillet | G42: 30 | H42: 170 | K42: Juillet | L42: 21 | M42: 97 | P42: Juillet | Q42: 14 | R42: 48 | U42: Juillet | V42: 16 | W42: 53
A43: Août | B43: 29 | C43: 164 | F43: Août | G43: 30 | H43: 170 | K43: Août | L43: 21 | M43: 97 | P43: Août | Q43: 15 | R43: 48 | U43: Août | V43: 16 | W43: 53
A44: Septembre | B44: 30 | C44: 171 | F44: Septembre | G44: 31 | H44: 177 | K44: Septembre | L44: 22 | M44: 101 | P44: Septembre | Q44: 15 | R44: 51 | U44: Septembre | V44: 16 | W44: 55
A45: Octobre | B45: 32 | C45: 185 | F45: Octobre | G45: 33 | H45: 191 | K45: Octobre | L45: 23 | M45: 109 | P45: Octobre | Q45: 16 | R45: 55 | U45: Octobre | V45: 17 | W45: 59
A46: Novembre | B46: 34 | C46: 205 | F46: Novembre | G46: 37 | H46: 212 | K46: Novembre | L46: 25 | M46: 121 | P46: Novembre | Q46: 17 | R46: 61 | U46: Novembre | V46: 18 | W46: 66
A47: Décembre | B47: 36 | C47: 222 | F47: Décembre | G47: 39 | H47: 227 | K47: Décembre | L47: 20 | M47: 92 | P47: Décembre | Q47: 17 | R47: 59 | U47: Décembre | V47: 18 | W47: 70
A48: Total | B48: =SUM(B42:B47) -> 177 | C48: =SUM(C42:C47) -> 1044 | F48: Total | G48: =SUM(G36:G47) -> 401 | H48: =SUM(H36:H47) -> 2306 | K48: Total | L48: =SUM(L36:L47) -> 336 | M48: =SUM(M36:M47) -> 1739 | P48: Total | Q48: =SUM(Q36:Q47) -> 184 | R48: =SUM(R36:R47) -> 646 | U48: Total | V48: =SUM(V36:V47) -> 190 | W48: =SUM(W36:W47) -> 643
A50: 2018 | B50: € | C50: KWH | F50: 2019 | G50: € | H50: KWH | K50: 2020 | L50: € | M50: KWH | P50: 2021 | Q50: € | R50: KWH | U50: 2022 | V50: € | W50: KWH
A51: Janvier | F51: Janvier | K51: Janvier | P51: Janvier | U51: Janvier
A52: Février | F52: Février | K52: Février | P52: Février | U52: Février
A53: Mars | F53: Mars | K53: Mars | P53: Mars | U53: Mars
A54: Avril | F54: Avril | K54: Avril | P54: Avril | U54: Avril
A55: Mai | F55: Mai | K55: Mai | P55: Mai | U55: Mai
A56: Juin | F56: Juin | K56: Juin | P56: Juin | U56: Juin
A57: Juillet | F57: Juillet | K57: Juillet | P57: Juillet | U57: Juillet
A58: Août | F58: Août | K58: Août | P58: Août | U58: Août
A59: Septembre | F59: Septembre | K59: Septembre | P59: Septembre | U59: Septembre
A60: Octobre | F60: Octobre | K60: Octobre | P60: Octobre | U60: Octobre
A61: Novembre | F61: Novembre | K61: Novembre | P61: Novembre | U61: Novembre
A62: Décembre | F62: Décembre | K62: Décembre | P62: Décembre | U62: Décembre
A63: Total | B63: =SUM(B51:B62) -> 0 | C63: =SUM(C51:C62) -> 0 | F63: Total | G63: =SUM(G51:G62) -> 0 | H63: =SUM(H51:H62) -> 0 | K63: Total | L63: =SUM(L51:L62) -> 0 | M63: =SUM(M51:M62) -> 0 | P63: Total | Q63: =SUM(Q51:Q62) -> 0 | R63: =SUM(R51:R62) -> 0 | U63: Total | V63: =SUM(V51:V62) -> 0 | W63: =SUM(W51:W62) -> 0
